[Event "Titled Tuesday Blitz November 01 Early 2022"]
[White "Kowalczyk, Pawel"]
[Black "Kovalenko, Igor"]
[WhiteFideId "1130641"]
[BlackFideId "14117908"]
[WhiteElo "2324"]
[BlackElo "2574"]
[Result "1/2-1/2"]
[Round "05"]
[TimeControl "180+1"]
[Date "2022.11.01"]
[WhiteClock "0:00:24"]
[BlackClock "0:00:10"]

1. e4 {[%clk 0:03:00]}  c5 {[%clk 0:00:13]} 2. Ne2 {[%clk 0:03:00]}  Nc6 {[%clk 0:00:12]} 3. g3 {[%clk 0:03:00]}  e6 {[%clk 0:00:12]} 4. Bg2 {[%clk 0:03:00]}  d6 {[%clk 0:00:12]} 5. O-O {[%clk 0:03:00]}  Nf6 {[%clk 0:00:12]} 6. c3 {[%clk 0:03:01]}  Be7 {[%clk 0:00:12]} 7. d4 {[%clk 0:03:01]}  cxd4 {[%clk 0:00:13]} 8. cxd4 {[%clk 0:03:02]}  O-O {[%clk 0:00:14]} 9. d5 {[%clk 0:03:02]}  exd5 {[%clk 0:00:15]} 10. exd5 {[%clk 0:03:02]}  Ne5 {[%clk 0:00:16]} 11. Nbc3 {[%clk 0:03:03]}  Ng6 {[%clk 0:00:16]} 12. Re1 {[%clk 0:03:02]}  Bd7 {[%clk 0:00:17]} 13. h3 {[%clk 0:03:00]}  Rc8 {[%clk 0:00:18]} 14. Be3 {[%clk 0:02:58]}  a6 {[%clk 0:00:19]} 15. Nd4 {[%clk 0:02:57]}  Re8 {[%clk 0:00:19]} 16. Qd2 {[%clk 0:02:56]}  h6 {[%clk 0:00:19]} 17. f4 {[%clk 0:02:50]}  Nh5 {[%clk 0:00:17]} 18. Bf2 {[%clk 0:02:48]}  Bf6 {[%clk 0:00:16]} 19. Rxe8+ {[%clk 0:02:45]}  Qxe8 {[%clk 0:00:17]} 20. Re1 {[%clk 0:02:44]}  Qd8 {[%clk 0:00:18]} 21. Qd1 {[%clk 0:02:36]}  Bxd4 {[%clk 0:00:17]} 22. Qxd4 {[%clk 0:02:34]}  Nf6 {[%clk 0:00:18]} 23. a4 {[%clk 0:02:21]}  h5 {[%clk 0:00:18]} 24. Qb4 {[%clk 0:02:01]}  Qc7 {[%clk 0:00:17]} 25. Bf1 {[%clk 0:01:54]}  Bf5 {[%clk 0:00:16]} 26. a5 {[%clk 0:01:42]}  Qd7 {[%clk 0:00:16]} 27. Kh2 {[%clk 0:01:37]}  Re8 {[%clk 0:00:17]} 28. Rxe8+ {[%clk 0:01:35]}  Nxe8 {[%clk 0:00:18]} 29. Be3 {[%clk 0:01:23]}  Qe7 {[%clk 0:00:17]} 30. Qd4 {[%clk 0:01:21]}  Nf6 {[%clk 0:00:17]} 31. Be2 {[%clk 0:01:17]}  Qd8 {[%clk 0:00:17]} 32. b4 {[%clk 0:01:16]}  Qd7 {[%clk 0:00:18]} 33. Bf1 {[%clk 0:01:14]}  Qc8 {[%clk 0:00:17]} 34. b5 {[%clk 0:01:08]}  axb5 {[%clk 0:00:17]} 35. Nxb5 {[%clk 0:01:06]}  Qc2+ {[%clk 0:00:15]} 36. Kg1 {[%clk 0:00:55]}  Ne4 {[%clk 0:00:13]} 37. Qd3 {[%clk 0:00:45]}  Qa4 {[%clk 0:00:12]} 38. Nd4 {[%clk 0:00:37]}  Nxg3 {[%clk 0:00:09]} 39. Nxf5 {[%clk 0:00:35]}  Nxf1 {[%clk 0:00:09]} 40. Kxf1 {[%clk 0:00:33]}  Nxf4 {[%clk 0:00:08]} 41. Bxf4 {[%clk 0:00:28]}  Qxf4+ {[%clk 0:00:09]} 42. Kg2 {[%clk 0:00:29]}  g6 {[%clk 0:00:09]} 43. Ng3 {[%clk 0:00:29]}  Qb4 {[%clk 0:00:08]} 44. a6 {[%clk 0:00:27]}  bxa6 {[%clk 0:00:08]} 45. Qxa6 {[%clk 0:00:28]}  Qd2+ {[%clk 0:00:08]} 46. Qe2 {[%clk 0:00:28]}  Qxd5+ {[%clk 0:00:09]} 47. Qe4 {[%clk 0:00:27]}  Qc5 {[%clk 0:00:09]} 48. h4 {[%clk 0:00:26]}  Kg7 {[%clk 0:00:10]} 49. Nf1 {[%clk 0:00:25]}  Qe5 {[%clk 0:00:09]} 50. Qf3 {[%clk 0:00:23]}  f5 {[%clk 0:00:09]} 51. Nd2 {[%clk 0:00:22]}  Kf6 {[%clk 0:00:09]} 52. Qf2 {[%clk 0:00:21]}  Qd5+ {[%clk 0:00:09]} 53. Nf3 {[%clk 0:00:21]}  Qe4 {[%clk 0:00:09]} 54. Kg1 {[%clk 0:00:20]}  f4 {[%clk 0:00:08]} 55. Ng5 {[%clk 0:00:19]}  Qe3 {[%clk 0:00:07]} 56. Qxe3 {[%clk 0:00:19]}  fxe3 {[%clk 0:00:08]} 57. Kg2 {[%clk 0:00:20]}  d5 {[%clk 0:00:08]} 58. Kf3 {[%clk 0:00:20]}  d4 {[%clk 0:00:08]} 59. Ke4 {[%clk 0:00:19]}  e2 {[%clk 0:00:08]} 60. Nf3 {[%clk 0:00:20]}  d3 {[%clk 0:00:05]} 61. Kxd3 {[%clk 0:00:20]}  Kf5 {[%clk 0:00:06]} 62. Kxe2 {[%clk 0:00:20]}  Ke4 {[%clk 0:00:06]} 63. Kf2 {[%clk 0:00:20]}  Kf4 {[%clk 0:00:07]} 64. Kg2 {[%clk 0:00:20]}  Kg4 {[%clk 0:00:07]} 65. Kf2 {[%clk 0:00:21]}  Kf4 {[%clk 0:00:08]} 66. Nh2 {[%clk 0:00:21]}  g5 {[%clk 0:00:08]} 67. hxg5 {[%clk 0:00:21]}  Kxg5 {[%clk 0:00:08]} 68. Kg3 {[%clk 0:00:22]}  h4+ {[%clk 0:00:09]} 69. Kh3 {[%clk 0:00:23]}  Kf4 {[%clk 0:00:10]} 70. Nf3 {[%clk 0:00:23]}  Kxf3 {[%clk 0:00:10]} 71. Kxh4 {[%clk 0:00:24]} 1/2-1/2


[Site "https://www.chess.com"]

[Event "Titled Tuesday Blitz November 01 Early 2022"]
[White "Manukian, Artak"]
[Black "Pinheiro, Iung Alicio de O."]
[WhiteFideId "13301373"]
[BlackFideId "2104350"]
[WhiteElo "2461"]
[BlackElo "2283"]
[Result "1-0"]
[Round "05"]
[TimeControl "180+1"]
[Date "2022.11.02"]
[WhiteClock "0:00:37"]
[BlackClock "0:00:15"]

1. e4 {[%clk 0:03:00]}  c5 {[%clk 0:02:55]} 2. Nf3 {[%clk 0:03:00]}  Nc6 {[%clk 0:02:55]} 3. c3 {[%clk 0:03:00]}  Nf6 {[%clk 0:02:51]} 4. e5 {[%clk 0:03:00]}  Nd5 {[%clk 0:02:51]} 5. d4 {[%clk 0:03:01]}  cxd4 {[%clk 0:02:51]} 6. cxd4 {[%clk 0:03:02]}  d6 {[%clk 0:02:45]} 7. Nc3 {[%clk 0:03:03]}  Nxc3 {[%clk 0:02:30]} 8. bxc3 {[%clk 0:03:04]}  e6 {[%clk 0:02:30]} 9. Bd3 {[%clk 0:02:58]}  dxe5 {[%clk 0:02:29]} 10. dxe5 {[%clk 0:02:58]}  Be7 {[%clk 0:02:26]} 11. O-O {[%clk 0:02:57]}  Qa5 {[%clk 0:02:18]} 12. Qe2 {[%clk 0:02:57]}  Bd7 {[%clk 0:02:11]} 13. Rb1 {[%clk 0:02:42]}  O-O-O {[%clk 0:02:09]} 14. Be4 {[%clk 0:02:32]}  Kc7 {[%clk 0:01:50]} 15. Bf4 {[%clk 0:02:04]}  Bc8 {[%clk 0:01:39]} 16. Bxc6 {[%clk 0:01:44]}  Kxc6 {[%clk 0:01:32]} 17. Qc4+ {[%clk 0:01:36]}  Qc5 {[%clk 0:01:28]} 18. Nd4+ {[%clk 0:01:27]}  Kc7 {[%clk 0:01:28]} 19. Nb5+ {[%clk 0:01:21]}  Kb8 {[%clk 0:01:26]} 20. Qb3 {[%clk 0:01:19]}  g5 {[%clk 0:01:05]} 21. Bg3 {[%clk 0:01:14]}  h5 {[%clk 0:00:51]} 22. h3 {[%clk 0:01:12]}  h4 {[%clk 0:00:50]} 23. Bh2 {[%clk 0:01:12]}  g4 {[%clk 0:00:50]} 24. hxg4 {[%clk 0:01:11]}  h3 {[%clk 0:00:49]} 25. Nd6 {[%clk 0:01:11]}  Qc6 {[%clk 0:00:44]} 26. f3 {[%clk 0:01:05]}  hxg2 {[%clk 0:00:42]} 27. Kxg2 {[%clk 0:01:04]}  Rxh2+ {[%clk 0:00:31]} 28. Kxh2 {[%clk 0:01:04]}  Bxd6 {[%clk 0:00:32]} 29. exd6 {[%clk 0:01:02]}  Qxd6+ {[%clk 0:00:33]} 30. Kg2 {[%clk 0:01:00]}  Rh8 {[%clk 0:00:32]} 31. Rh1 {[%clk 0:00:56]}  Qd2+ {[%clk 0:00:29]} 32. Kg3 {[%clk 0:00:56]}  Qd6+ {[%clk 0:00:27]} 33. Kg2 {[%clk 0:00:56]}  Qd2+ {[%clk 0:00:22]} 34. Kg3 {[%clk 0:00:56]}  Rd8 {[%clk 0:00:18]} 35. Rbd1 {[%clk 0:00:51]}  Qg5 {[%clk 0:00:18]} 36. f4 {[%clk 0:00:44]}  Qe7 {[%clk 0:00:17]} 37. Rxd8 {[%clk 0:00:43]}  Qxd8 {[%clk 0:00:18]} 38. Rd1 {[%clk 0:00:40]}  Qa5 {[%clk 0:00:15]} 39. Qb4 {[%clk 0:00:39]}  Qxa2 {[%clk 0:00:15]} 40. Qd6+ {[%clk 0:00:38]}  Ka8 {[%clk 0:00:15]} 41. Qc7 {[%clk 0:00:37]} 1-0


[Site "https://www.chess.com"]

[Event "Titled Tuesday Blitz November 01 Early 2022"]
[White "Mirzoev, Azer"]
[Black "Boruchovsky, Avital"]
[WhiteFideId "13400304"]
[BlackFideId "2800055"]
[WhiteElo "2525"]
[BlackElo "2466"]
[Result "1-0"]
[Round "05"]
[TimeControl "180+1"]
[Date "2022.11.01"]
[WhiteClock "0:00:05"]
[BlackClock "0:00:06"]

1. d4 {[%clk 0:03:00]}  d5 {[%clk 0:02:56]} 2. Nf3 {[%clk 0:03:00]}  e6 {[%clk 0:02:56]} 3. Bf4 {[%clk 0:03:00]}  c5 {[%clk 0:02:56]} 4. e3 {[%clk 0:03:00]}  Nc6 {[%clk 0:02:56]} 5. c3 {[%clk 0:03:00]}  Nf6 {[%clk 0:02:55]} 6. Nbd2 {[%clk 0:02:59]}  Be7 {[%clk 0:02:52]} 7. h3 {[%clk 0:02:58]}  O-O {[%clk 0:02:52]} 8. Bd3 {[%clk 0:02:59]}  c4 {[%clk 0:02:51]} 9. Bc2 {[%clk 0:02:59]}  b5 {[%clk 0:02:52]} 10. a3 {[%clk 0:02:58]}  a5 {[%clk 0:02:51]} 11. O-O {[%clk 0:02:59]}  Bb7 {[%clk 0:02:39]} 12. e4 {[%clk 0:02:57]}  b4 {[%clk 0:02:39]} 13. axb4 {[%clk 0:02:46]}  axb4 {[%clk 0:02:38]} 14. Rxa8 {[%clk 0:02:44]}  Qxa8 {[%clk 0:02:39]} 15. Re1 {[%clk 0:02:32]}  Qa2 {[%clk 0:02:21]} 16. Qc1 {[%clk 0:02:25]}  Ra8 {[%clk 0:02:02]} 17. Bg5 {[%clk 0:02:20]}  h6 {[%clk 0:02:00]} 18. Bxf6 {[%clk 0:02:14]}  Bxf6 {[%clk 0:02:00]} 19. exd5 {[%clk 0:02:14]}  exd5 {[%clk 0:01:59]} 20. Nf1 {[%clk 0:02:11]}  bxc3 {[%clk 0:01:38]} 21. bxc3 {[%clk 0:02:10]}  Na5 {[%clk 0:01:36]} 22. Ng3 {[%clk 0:01:35]}  Nb3 {[%clk 0:01:33]} 23. Qd1 {[%clk 0:01:29]}  Qb2 {[%clk 0:01:26]} 24. Nh5 {[%clk 0:01:15]}  Qxc3 {[%clk 0:01:19]} 25. Qe2 {[%clk 0:00:57]}  Bc6 {[%clk 0:01:05]} 26. Ne5 {[%clk 0:00:36]}  Bxe5 {[%clk 0:00:38]} 27. Qxe5 {[%clk 0:00:35]}  Qxd4 {[%clk 0:00:38]} 28. Qc7 {[%clk 0:00:13]}  Qd2 {[%clk 0:00:18]} 29. Re7 {[%clk 0:00:08]}  Be8 {[%clk 0:00:10]} 30. Bg6 {[%clk 0:00:05]}  Qc1+ {[%clk 0:00:04]} 31. Kh2 {[%clk 0:00:05]}  Qg5 {[%clk 0:00:05]} 32. Bxf7+ {[%clk 0:00:05]}  Bxf7 {[%clk 0:00:05]} 33. Rxf7 {[%clk 0:00:05]}  Qxh5 {[%clk 0:00:06]} 34. Rxg7+ {[%clk 0:00:05]}  Kf8 {[%clk 0:00:06]} 35. Qe7# {[%clk 0:00:05]} 1-0


[Site "https://www.chess.com"]

[Event "Titled Tuesday Blitz November 01 Early 2022"]
[White "Navara, David"]
[Black "Narayanan, Srinath"]
[WhiteFideId "309095"]
[BlackFideId "5018420"]
[WhiteElo "2676"]
[BlackElo "2459"]
[Result "1-0"]
[Round "05"]
[TimeControl "180+1"]
[Date "2022.11.01"]
[WhiteClock "0:00:15"]
[BlackClock "0:00:02"]

1. d4 {[%clk 0:03:00]}  Nf6 {[%clk 0:02:59]} 2. Nf3 {[%clk 0:03:01]}  d5 {[%clk 0:02:59]} 3. Bf4 {[%clk 0:03:01]}  c5 {[%clk 0:02:56]} 4. e3 {[%clk 0:03:02]}  Nc6 {[%clk 0:02:56]} 5. Nbd2 {[%clk 0:03:01]}  Bg4 {[%clk 0:02:56]} 6. c3 {[%clk 0:03:00]}  e6 {[%clk 0:02:54]} 7. Qb3 {[%clk 0:02:53]}  Qc8 {[%clk 0:02:47]} 8. h3 {[%clk 0:02:53]}  Bh5 {[%clk 0:02:42]} 9. Nh4 {[%clk 0:02:51]}  cxd4 {[%clk 0:02:39]} 10. exd4 {[%clk 0:02:52]}  Qd7 {[%clk 0:02:39]} 11. Bd3 {[%clk 0:02:39]}  Bd6 {[%clk 0:02:15]} 12. Bxd6 {[%clk 0:02:39]}  Qxd6 {[%clk 0:02:16]} 13. Nhf3 {[%clk 0:02:39]}  O-O {[%clk 0:02:15]} 14. O-O {[%clk 0:02:39]}  Rab8 {[%clk 0:02:13]} 15. Rfe1 {[%clk 0:02:26]}  Nd7 {[%clk 0:02:00]} 16. Qc2 {[%clk 0:02:24]}  Bg6 {[%clk 0:02:00]} 17. Bxg6 {[%clk 0:02:24]}  hxg6 {[%clk 0:02:01]} 18. Re2 {[%clk 0:01:56]}  b5 {[%clk 0:01:58]} 19. a3 {[%clk 0:01:56]}  a5 {[%clk 0:01:58]} 20. b4 {[%clk 0:01:55]}  Rfc8 {[%clk 0:01:57]} 21. Qd3 {[%clk 0:01:54]}  Rc7 {[%clk 0:01:55]} 22. Nb3 {[%clk 0:01:50]}  e5 {[%clk 0:01:23]} 23. dxe5 {[%clk 0:01:44]}  Ncxe5 {[%clk 0:01:24]} 24. Nxe5 {[%clk 0:01:45]}  Nxe5 {[%clk 0:01:25]} 25. Qg3 {[%clk 0:01:45]}  Re7 {[%clk 0:01:10]} 26. Rae1 {[%clk 0:01:29]}  Rbe8 {[%clk 0:01:09]} 27. Nxa5 {[%clk 0:01:29]}  d4 {[%clk 0:00:54]} 28. cxd4 {[%clk 0:01:15]}  Qxd4 {[%clk 0:00:55]} 29. Nb3 {[%clk 0:01:02]}  Qd5 {[%clk 0:00:50]} 30. Kh1 {[%clk 0:01:00]}  Re6 {[%clk 0:00:44]} 31. Nc5 {[%clk 0:00:57]}  R6e7 {[%clk 0:00:44]} 32. Qb3 {[%clk 0:00:47]}  Qd6 {[%clk 0:00:39]} 33. Ne4 {[%clk 0:00:40]}  Qd4 {[%clk 0:00:30]} 34. Qc3 {[%clk 0:00:21]}  Qd5 {[%clk 0:00:20]} 35. Nc5 {[%clk 0:00:15]}  Qd6 {[%clk 0:00:11]} 36. Ne4 {[%clk 0:00:14]}  Qd5 {[%clk 0:00:11]} 37. Qc5 {[%clk 0:00:15]}  Qxc5 {[%clk 0:00:02]} 38. Nxc5 {[%clk 0:00:15]} 1-0


[Site "https://www.chess.com"]

[Event "Titled Tuesday Blitz November 01 Early 2022"]
[White "Nozdrachev, Leonid"]
[Black "Johnson, Ben"]
[WhiteFideId "24113433"]
[BlackFideId "2010917"]
[WhiteElo "2249"]
[BlackElo "2133"]
[Result "1-0"]
[Round "05"]
[TimeControl "180+1"]
[Date "2022.11.02"]
[WhiteClock "0:00:50"]
[BlackClock "0:00:02"]

1. e4 {[%clk 0:02:22]}  c5 {[%clk 0:02:59]} 2. Nf3 {[%clk 0:02:19]}  Nc6 {[%clk 0:02:59]} 3. Nc3 {[%clk 0:02:18]}  e5 {[%clk 0:02:58]} 4. Bc4 {[%clk 0:02:17]}  Be7 {[%clk 0:02:57]} 5. d3 {[%clk 0:02:16]}  Nf6 {[%clk 0:02:55]} 6. O-O {[%clk 0:02:13]}  O-O {[%clk 0:02:55]} 7. Ng5 {[%clk 0:02:10]}  d6 {[%clk 0:02:52]} 8. f4 {[%clk 0:02:10]}  Bg4 {[%clk 0:02:46]} 9. Qe1 {[%clk 0:02:09]}  exf4 {[%clk 0:02:41]} 10. Bxf4 {[%clk 0:02:10]}  Ne5 {[%clk 0:02:23]} 11. Bb3 {[%clk 0:02:10]}  Bh5 {[%clk 0:02:13]} 12. Qg3 {[%clk 0:02:06]}  Nfd7 {[%clk 0:02:03]} 13. Nd5 {[%clk 0:02:04]}  b5 {[%clk 0:01:37]} 14. Nxe7+ {[%clk 0:01:59]}  Qxe7 {[%clk 0:01:38]} 15. Bd5 {[%clk 0:02:00]}  Rab8 {[%clk 0:01:32]} 16. Rae1 {[%clk 0:01:57]}  Nb6 {[%clk 0:01:26]} 17. c3 {[%clk 0:01:51]}  Rbd8 {[%clk 0:00:46]} 18. d4 {[%clk 0:01:43]}  cxd4 {[%clk 0:00:44]} 19. cxd4 {[%clk 0:01:44]}  Nec4 {[%clk 0:00:44]} 20. b3 {[%clk 0:01:42]}  Na3 {[%clk 0:00:32]} 21. Bc6 {[%clk 0:01:38]}  Nc2 {[%clk 0:00:25]} 22. Rd1 {[%clk 0:01:36]}  a6 {[%clk 0:00:22]} 23. d5 {[%clk 0:01:31]}  Nb4 {[%clk 0:00:20]} 24. Rc1 {[%clk 0:01:25]}  Bg6 {[%clk 0:00:17]} 25. Qf2 {[%clk 0:01:23]}  h6 {[%clk 0:00:14]} 26. Qxb6 {[%clk 0:01:16]}  hxg5 {[%clk 0:00:14]} 27. Bd2 {[%clk 0:01:17]}  Qxe4 {[%clk 0:00:10]} 28. Rce1 {[%clk 0:01:13]}  Qg4 {[%clk 0:00:05]} 29. h3 {[%clk 0:01:10]}  Qh4 {[%clk 0:00:05]} 30. Re7 {[%clk 0:01:04]}  Nd3 {[%clk 0:00:03]} 31. Qe3 {[%clk 0:00:57]}  Ne5 {[%clk 0:00:03]} 32. Qxg5 {[%clk 0:00:56]}  Qxg5 {[%clk 0:00:03]} 33. Bxg5 {[%clk 0:00:57]}  Nxc6 {[%clk 0:00:02]} 34. dxc6 {[%clk 0:00:58]}  Rc8 {[%clk 0:00:02]} 35. c7 {[%clk 0:00:58]}  d5 {[%clk 0:00:01]} 36. Rd7 {[%clk 0:00:52]}  d4 {[%clk 0:00:02]} 37. Be7 {[%clk 0:00:49]}  Rfe8 {[%clk 0:00:01]} 38. Rd8 {[%clk 0:00:49]}  d3 {[%clk 0:00:01]} 39. Rxe8+ {[%clk 0:00:49]}  Rxe8 {[%clk 0:00:02]} 40. Bd8 {[%clk 0:00:50]} 1-0


[Site "https://www.chess.com"]

[Event "Titled Tuesday Blitz November 01 Early 2022"]
[White "Odegov, Artem"]
[Black "Celestino, Rafael Teixeira"]
[WhiteFideId "34183644"]
[BlackFideId "2108925"]
[WhiteElo "2298"]
[BlackElo "2451"]
[Result "1-0"]
[Round "05"]
[TimeControl "180+1"]
[Date "2022.11.02"]
[WhiteClock "0:01:19"]
[BlackClock "0:00:08"]

1. d4 {[%clk 0:03:00]}  Nf6 {[%clk 0:02:59]} 2. c4 {[%clk 0:03:00]}  e6 {[%clk 0:03:00]} 3. Nf3 {[%clk 0:02:59]}  d5 {[%clk 0:03:00]} 4. Nc3 {[%clk 0:02:56]}  Bb4 {[%clk 0:03:00]} 5. Bg5 {[%clk 0:02:56]}  h6 {[%clk 0:02:59]} 6. Bxf6 {[%clk 0:02:50]}  Qxf6 {[%clk 0:03:00]} 7. Qa4+ {[%clk 0:02:50]}  Nc6 {[%clk 0:03:00]} 8. e3 {[%clk 0:02:51]}  O-O {[%clk 0:02:58]} 9. Be2 {[%clk 0:02:50]}  dxc4 {[%clk 0:02:46]} 10. O-O {[%clk 0:02:49]}  Bxc3 {[%clk 0:02:46]} 11. bxc3 {[%clk 0:02:49]}  e5 {[%clk 0:02:47]} 12. Qxc4 {[%clk 0:02:41]}  exd4 {[%clk 0:02:31]} 13. cxd4 {[%clk 0:02:42]}  Bg4 {[%clk 0:02:25]} 14. d5 {[%clk 0:02:42]}  Bxf3 {[%clk 0:02:23]} 15. Bxf3 {[%clk 0:02:29]}  Ne5 {[%clk 0:02:23]} 16. Qe2 {[%clk 0:02:30]}  Nxf3+ {[%clk 0:02:07]} 17. Qxf3 {[%clk 0:02:31]}  Qxf3 {[%clk 0:02:05]} 18. gxf3 {[%clk 0:02:32]}  f5 {[%clk 0:02:03]} 19. Rac1 {[%clk 0:02:31]}  Rf7 {[%clk 0:02:02]} 20. Rfd1 {[%clk 0:02:31]}  Rd8 {[%clk 0:02:02]} 21. Rb1 {[%clk 0:02:28]}  b6 {[%clk 0:01:59]} 22. Rbc1 {[%clk 0:02:27]}  Rfd7 {[%clk 0:01:58]} 23. e4 {[%clk 0:02:27]}  fxe4 {[%clk 0:01:49]} 24. fxe4 {[%clk 0:02:28]}  c5 {[%clk 0:01:43]} 25. f3 {[%clk 0:02:24]}  Kf7 {[%clk 0:01:44]} 26. Kf2 {[%clk 0:02:24]}  Kf6 {[%clk 0:01:44]} 27. Ke3 {[%clk 0:02:25]}  g5 {[%clk 0:01:39]} 28. h4 {[%clk 0:02:23]}  Ke5 {[%clk 0:01:37]} 29. Rg1 {[%clk 0:02:20]}  Rg8 {[%clk 0:01:33]} 30. Rg4 {[%clk 0:02:17]}  Rdg7 {[%clk 0:01:26]} 31. Rcg1 {[%clk 0:02:16]}  Kf6 {[%clk 0:01:13]} 32. hxg5+ {[%clk 0:02:12]}  Rxg5 {[%clk 0:00:58]} 33. Rf4+ {[%clk 0:02:05]}  Ke7 {[%clk 0:00:56]} 34. Rxg5 {[%clk 0:02:05]}  hxg5 {[%clk 0:00:54]} 35. Rf5 {[%clk 0:02:04]}  Kd6 {[%clk 0:00:48]} 36. Rf6+ {[%clk 0:02:03]}  Kc7 {[%clk 0:00:42]} 37. Rf7+ {[%clk 0:02:00]}  Kd6 {[%clk 0:00:24]} 38. Rxa7 {[%clk 0:01:43]}  g4 {[%clk 0:00:23]} 39. fxg4 {[%clk 0:01:44]}  Rxg4 {[%clk 0:00:24]} 40. Rb7 {[%clk 0:01:44]}  Rg3+ {[%clk 0:00:23]} 41. Kf4 {[%clk 0:01:43]}  Rg2 {[%clk 0:00:14]} 42. Rxb6+ {[%clk 0:01:41]}  Kd7 {[%clk 0:00:14]} 43. Rb7+ {[%clk 0:01:40]}  Kc8 {[%clk 0:00:13]} 44. Rb5 {[%clk 0:01:40]}  Rc2 {[%clk 0:00:13]} 45. Ke5 {[%clk 0:01:40]}  c4 {[%clk 0:00:13]} 46. Kd6 {[%clk 0:01:40]}  Rxa2 {[%clk 0:00:11]} 47. Rc5+ {[%clk 0:01:37]}  Kd8 {[%clk 0:00:12]} 48. Rxc4 {[%clk 0:01:38]}  Ra6+ {[%clk 0:00:12]} 49. Rc6 {[%clk 0:01:38]}  Ra4 {[%clk 0:00:12]} 50. e5 {[%clk 0:01:39]}  Ra7 {[%clk 0:00:12]} 51. e6 {[%clk 0:01:39]}  Rd7+ {[%clk 0:00:10]} 52. Ke5 {[%clk 0:01:39]}  Ra7 {[%clk 0:00:09]} 53. Rb6 {[%clk 0:01:38]}  Ra5 {[%clk 0:00:08]} 54. Kd6 {[%clk 0:01:35]}  Ra8 {[%clk 0:00:08]} 55. Ke5 {[%clk 0:01:27]}  Ra5 {[%clk 0:00:07]} 56. Kf6 {[%clk 0:01:23]}  Rxd5 {[%clk 0:00:07]} 57. e7+ {[%clk 0:01:23]}  Kd7 {[%clk 0:00:07]} 58. Rb7+ {[%clk 0:01:21]}  Kd6 {[%clk 0:00:08]} 59. e8=Q {[%clk 0:01:19]} 1-0


[Site "https://www.chess.com"]

[Event "Titled Tuesday Blitz November 01 Early 2022"]
[White "Oglaza, Oskar"]
[Black "Fernandez Hernandez, Gerardo"]
[WhiteFideId "1194402"]
[BlackFideId "2207400"]
[WhiteElo "2204"]
[BlackElo "2248"]
[Result "1-0"]
[Round "05"]
[TimeControl "180+1"]
[Date "2022.11.02"]
[WhiteClock "0:01:55"]
[BlackClock "0:00:03"]

1. e4 {[%clk 0:03:00]}  e6 {[%clk 0:02:59]} 2. d4 {[%clk 0:02:59]}  d5 {[%clk 0:03:00]} 3. Nc3 {[%clk 0:02:59]}  Nc6 {[%clk 0:03:00]} 4. Nf3 {[%clk 0:02:58]}  Nf6 {[%clk 0:02:59]} 5. e5 {[%clk 0:02:58]}  Ne4 {[%clk 0:02:58]} 6. Bd3 {[%clk 0:02:56]}  Bb4 {[%clk 0:02:57]} 7. Bd2 {[%clk 0:02:56]}  Nxd2 {[%clk 0:02:56]} 8. Qxd2 {[%clk 0:02:57]}  f6 {[%clk 0:02:56]} 9. exf6 {[%clk 0:02:55]}  Qxf6 {[%clk 0:02:56]} 10. a3 {[%clk 0:02:54]}  Bxc3 {[%clk 0:02:56]} 11. bxc3 {[%clk 0:02:52]}  O-O {[%clk 0:02:52]} 12. O-O {[%clk 0:02:53]}  Bd7 {[%clk 0:02:25]} 13. Rae1 {[%clk 0:02:52]}  Rae8 {[%clk 0:02:10]} 14. Ne5 {[%clk 0:02:52]}  Re7 {[%clk 0:01:40]} 15. f4 {[%clk 0:02:51]}  Nb8 {[%clk 0:01:16]} 16. g4 {[%clk 0:02:51]}  Ree8 {[%clk 0:00:51]} 17. g5 {[%clk 0:02:45]}  Qd8 {[%clk 0:00:49]} 18. Qe3 {[%clk 0:02:42]}  c5 {[%clk 0:00:43]} 19. Bxh7+ {[%clk 0:02:20]}  Kxh7 {[%clk 0:00:32]} 20. Qh3+ {[%clk 0:02:21]}  Kg8 {[%clk 0:00:32]} 21. g6 {[%clk 0:02:22]}  Rf6 {[%clk 0:00:17]} 22. Qh7+ {[%clk 0:02:23]}  Kf8 {[%clk 0:00:17]} 23. Qh8+ {[%clk 0:02:24]}  Ke7 {[%clk 0:00:17]} 24. Qxg7+ {[%clk 0:02:24]}  Kd6 {[%clk 0:00:15]} 25. Nf7+ {[%clk 0:02:25]}  Rxf7 {[%clk 0:00:14]} 26. gxf7 {[%clk 0:02:26]}  Rf8 {[%clk 0:00:13]} 27. f5 {[%clk 0:02:26]}  exf5 {[%clk 0:00:11]} 28. Qe5+ {[%clk 0:02:11]}  Kc6 {[%clk 0:00:11]} 29. dxc5 {[%clk 0:02:11]}  Rxf7 {[%clk 0:00:08]} 30. Qd6+ {[%clk 0:02:12]}  Kb5 {[%clk 0:00:06]} 31. Rb1+ {[%clk 0:02:12]}  Ka5 {[%clk 0:00:03]} 32. Rf4 {[%clk 0:02:04]}  Rg7+ {[%clk 0:00:03]} 33. Kf1 {[%clk 0:02:02]}  Bb5+ {[%clk 0:00:02]} 34. Rxb5+ {[%clk 0:01:56]}  Kxb5 {[%clk 0:00:03]} 35. Rb4+ {[%clk 0:01:54]}  Ka5 {[%clk 0:00:03]} 36. Qxd8+ {[%clk 0:01:55]} 1-0


[Site "https://www.chess.com"]